[Event "Titled Tuesday Blitz July 27 2021"]
[White "Onyshchuk, Volodymyr"]
[Black "ValeriyGrinev"]
[WhiteFideId "14114038"]
[WhiteElo "2603"]
[BlackElo "2623"]
[Result "1-0"]
[Round "03"]
[TimeControl "180+1"]
[Date "2021.07.27"]
[WhiteClock "0:00:11"]
[BlackClock "0:00:02"]

1. e4 {[%clk 0:02:58]}  e5 {[%clk 0:03:00]} 2. Nf3 {[%clk 0:02:57]}  Nc6 {[%clk 0:03:00]} 3. Bc4 {[%clk 0:02:57]}  Nf6 {[%clk 0:03:00]} 4. d3 {[%clk 0:02:57]}  h6 {[%clk 0:03:00]} 5. Nbd2 {[%clk 0:02:56]}  d6 {[%clk 0:02:59]} 6. c3 {[%clk 0:02:54]}  g5 {[%clk 0:02:59]} 7. Nf1 {[%clk 0:02:51]}  Bg7 {[%clk 0:02:45]} 8. Ng3 {[%clk 0:02:46]}  d5 {[%clk 0:02:30]} 9. Bb5 {[%clk 0:02:42]}  Qe7 {[%clk 0:01:50]} 10. Qa4 {[%clk 0:02:29]}  Bd7 {[%clk 0:01:47]} 11. Nf5 {[%clk 0:02:06]}  Bxf5 {[%clk 0:01:47]} 12. exf5 {[%clk 0:02:06]}  O-O {[%clk 0:01:32]} 13. O-O {[%clk 0:02:04]}  Qd6 {[%clk 0:01:24]} 14. Bxc6 {[%clk 0:01:57]}  bxc6 {[%clk 0:01:24]} 15. Re1 {[%clk 0:01:57]}  Nh5 {[%clk 0:01:13]} 16. h4 {[%clk 0:01:55]}  Nf4 {[%clk 0:00:57]} 17. hxg5 {[%clk 0:01:53]}  hxg5 {[%clk 0:00:58]} 18. Nxg5 {[%clk 0:01:40]}  Nxd3 {[%clk 0:00:58]} 19. Re3 {[%clk 0:01:38]}  Nf4 {[%clk 0:00:48]} 20. Rf3 {[%clk 0:01:26]}  f6 {[%clk 0:00:28]} 21. Bxf4 {[%clk 0:00:54]}  fxg5 {[%clk 0:00:27]} 22. Bxg5 {[%clk 0:00:47]}  e4 {[%clk 0:00:28]} 23. Bf4 {[%clk 0:00:29]}  Qd7 {[%clk 0:00:20]} 24. Rg3 {[%clk 0:00:29]}  Rxf5 {[%clk 0:00:20]} 25. Be3 {[%clk 0:00:29]}  Kf7 {[%clk 0:00:07]} 26. Rd1 {[%clk 0:00:28]}  Qe6 {[%clk 0:00:05]} 27. Kf1 {[%clk 0:00:26]}  Rh8 {[%clk 0:00:05]} 28. Ke2 {[%clk 0:00:25]}  Qd7 {[%clk 0:00:02]} 29. Qxe4 {[%clk 0:00:20]}  Re8 {[%clk 0:00:02]} 30. Qg4 {[%clk 0:00:19]}  Kf8 {[%clk 0:00:02]} 31. Kd2 {[%clk 0:00:14]}  Rxf2+ {[%clk 0:00:01]} 32. Bxf2 {[%clk 0:00:13]}  Bh6+ {[%clk 0:00:02]} 33. Kd3 {[%clk 0:00:11]}  Qh7+ {[%clk 0:00:02]} 34. Qg6 {[%clk 0:00:11]} 1-0


[Site "https://www.chess.com"]

[Event "Titled Tuesday Blitz July 27 2021"]
[White "Quparadze, Giga"]
[Black "Batsuren, Dambasuren"]
[WhiteFideId "13602250"]
[BlackFideId "4902920"]
[WhiteElo "2658"]
[BlackElo "2371"]
[Result "1-0"]
[Round "03"]
[TimeControl "180+1"]
[Date "2021.07.27"]
[WhiteClock "0:00:06"]
[BlackClock "0:00:02"]

1. e4 {[%clk 0:03:00]}  e5 {[%clk 0:02:59]} 2. Nf3 {[%clk 0:03:00]}  Nc6 {[%clk 0:03:00]} 3. Bb5 {[%clk 0:03:00]}  a6 {[%clk 0:03:00]} 4. Ba4 {[%clk 0:03:00]}  b5 {[%clk 0:03:01]} 5. Bb3 {[%clk 0:03:00]}  Nf6 {[%clk 0:03:01]} 6. Qe2 {[%clk 0:03:00]}  Bb7 {[%clk 0:03:01]} 7. a4 {[%clk 0:02:59]}  Be7 {[%clk 0:02:28]} 8. Nc3 {[%clk 0:02:55]}  b4 {[%clk 0:02:27]} 9. Nd5 {[%clk 0:02:56]}  d6 {[%clk 0:02:25]} 10. Nxf6+ {[%clk 0:02:55]}  Bxf6 {[%clk 0:02:25]} 11. Bd5 {[%clk 0:02:56]}  O-O {[%clk 0:02:22]} 12. Qc4 {[%clk 0:02:54]}  Qd7 {[%clk 0:02:13]} 13. a5 {[%clk 0:02:54]}  Nxa5 {[%clk 0:01:59]} 14. Rxa5 {[%clk 0:02:50]}  c6 {[%clk 0:02:00]} 15. Bxf7+ {[%clk 0:02:48]}  Rxf7 {[%clk 0:01:56]} 16. Qxb4 {[%clk 0:02:49]}  c5 {[%clk 0:01:38]} 17. Qc4 {[%clk 0:02:47]}  Qg4 {[%clk 0:01:39]} 18. O-O {[%clk 0:02:24]}  Bxe4 {[%clk 0:01:36]} 19. Ra4 {[%clk 0:02:22]}  d5 {[%clk 0:01:11]} 20. Qxc5 {[%clk 0:02:15]}  Rc8 {[%clk 0:01:06]} 21. Qb6 {[%clk 0:01:31]}  d4 {[%clk 0:01:04]} 22. Ne1 {[%clk 0:01:31]}  Bh4 {[%clk 0:00:52]} 23. f3 {[%clk 0:01:19]}  Rcf8 {[%clk 0:00:32]} 24. Qb3 {[%clk 0:01:04]}  Qf5 {[%clk 0:00:07]} 25. Nd3 {[%clk 0:00:48]}  Ba8 {[%clk 0:00:05]} 26. Ra5 {[%clk 0:00:47]}  Bf6 {[%clk 0:00:02]} 27. Nf2 {[%clk 0:00:45]}  Kh8 {[%clk 0:00:01]} 28. Ne4 {[%clk 0:00:42]}  Bxe4 {[%clk 0:00:01]} 29. fxe4 {[%clk 0:00:43]}  Qxe4 {[%clk 0:00:02]} 30. Qd3 {[%clk 0:00:38]}  Qc6 {[%clk 0:00:01]} 31. Rxa6 {[%clk 0:00:37]}  Qb7 {[%clk 0:00:02]} 32. Qa3 {[%clk 0:00:24]}  e4 {[%clk 0:00:01]} 33. Re6 {[%clk 0:00:17]}  Qd5 {[%clk 0:00:01]} 34. Qd6 {[%clk 0:00:17]}  Qh5 {[%clk 0:00:01]} 35. Rxe4 {[%clk 0:00:13]}  d3 {[%clk 0:00:01]} 36. Ref4 {[%clk 0:00:09]}  dxc2 {[%clk 0:00:01]} 37. d4 {[%clk 0:00:09]}  Qe2 {[%clk 0:00:01]} 38. Qc5 {[%clk 0:00:07]}  Qd3 {[%clk 0:00:01]} 39. Kh1 {[%clk 0:00:06]}  Bxd4 {[%clk 0:00:01]} 40. Qxf8+ {[%clk 0:00:05]}  Rxf8 {[%clk 0:00:02]} 41. Rxf8# {[%clk 0:00:06]} 1-0


[Site "https://www.chess.com"]

[Event "Titled Tuesday Blitz July 27 2021"]
[White "Tang, Andrew"]
[Black "Nguyen, Quoc Hy"]
[WhiteFideId "2059630"]
[BlackFideId "12410853"]
[WhiteElo "2599"]
[BlackElo "1975"]
[Result "1-0"]
[Round "03"]
[TimeControl "180+1"]
[Date "2021.07.27"]
[WhiteClock "0:00:20"]
[BlackClock "0:00:05"]

1. d4 {[%clk 0:03:00]}  d5 {[%clk 0:02:59]} 2. Bf4 {[%clk 0:03:00]}  Nf6 {[%clk 0:02:55]} 3. e3 {[%clk 0:03:00]}  Bf5 {[%clk 0:02:55]} 4. c4 {[%clk 0:02:59]}  c6 {[%clk 0:02:55]} 5. Nc3 {[%clk 0:02:59]}  e6 {[%clk 0:02:55]} 6. Qb3 {[%clk 0:02:59]}  Qc8 {[%clk 0:02:54]} 7. Nf3 {[%clk 0:02:54]}  Be7 {[%clk 0:02:50]} 8. Rc1 {[%clk 0:02:36]}  O-O {[%clk 0:02:48]} 9. Be2 {[%clk 0:02:35]}  Nbd7 {[%clk 0:02:26]} 10. h3 {[%clk 0:02:34]}  dxc4 {[%clk 0:02:04]} 11. Bxc4 {[%clk 0:02:35]}  Nb6 {[%clk 0:01:55]} 12. Be2 {[%clk 0:02:32]}  Nfd5 {[%clk 0:01:36]} 13. Bg3 {[%clk 0:02:27]}  Nxc3 {[%clk 0:01:35]} 14. Rxc3 {[%clk 0:02:24]}  Qd8 {[%clk 0:01:19]} 15. O-O {[%clk 0:02:21]}  Bd6 {[%clk 0:01:19]} 16. Be5 {[%clk 0:02:15]}  Be4 {[%clk 0:01:16]} 17. Bxd6 {[%clk 0:02:05]}  Qxd6 {[%clk 0:01:17]} 18. Nd2 {[%clk 0:02:03]}  Bg6 {[%clk 0:01:09]} 19. Rc5 {[%clk 0:01:59]}  Nd7 {[%clk 0:00:44]} 20. Rcc1 {[%clk 0:01:56]}  Rab8 {[%clk 0:00:34]} 21. Qa4 {[%clk 0:01:37]}  a6 {[%clk 0:00:33]} 22. Qa5 {[%clk 0:01:27]}  Rfe8 {[%clk 0:00:29]} 23. f4 {[%clk 0:01:06]}  Qd5 {[%clk 0:00:21]} 24. Qa3 {[%clk 0:01:02]}  c5 {[%clk 0:00:18]} 25. Bf3 {[%clk 0:00:57]}  Qd6 {[%clk 0:00:14]} 26. Nb3 {[%clk 0:00:51]}  b6 {[%clk 0:00:11]} 27. Rfd1 {[%clk 0:00:49]}  Qe7 {[%clk 0:00:09]} 28. Qxa6 {[%clk 0:00:45]}  h6 {[%clk 0:00:04]} 29. Qa3 {[%clk 0:00:43]}  Qf6 {[%clk 0:00:03]} 30. dxc5 {[%clk 0:00:36]}  Nxc5 {[%clk 0:00:02]} 31. Nd4 {[%clk 0:00:36]}  Be4 {[%clk 0:00:02]} 32. Bxe4 {[%clk 0:00:29]}  Nxe4 {[%clk 0:00:03]} 33. Nc6 {[%clk 0:00:30]}  Ra8 {[%clk 0:00:03]} 34. Qb4 {[%clk 0:00:28]}  Qg6 {[%clk 0:00:03]} 35. Ne5 {[%clk 0:00:26]}  Qf5 {[%clk 0:00:03]} 36. g4 {[%clk 0:00:26]}  Qh7 {[%clk 0:00:04]} 37. Rc7 {[%clk 0:00:26]}  Rxa2 {[%clk 0:00:03]} 38. Rxf7 {[%clk 0:00:24]}  Ng3 {[%clk 0:00:03]} 39. Rdd7 {[%clk 0:00:21]}  Qb1+ {[%clk 0:00:03]} 40. Kg2 {[%clk 0:00:20]}  Rxb2+ {[%clk 0:00:04]} 41. Qxb2 {[%clk 0:00:18]}  Qxb2+ {[%clk 0:00:05]} 42. Kxg3 {[%clk 0:00:19]}  Rc8 {[%clk 0:00:05]} 43. Rxg7+ {[%clk 0:00:19]}  Kf8 {[%clk 0:00:05]} 44. Rdf7+ {[%clk 0:00:19]}  Ke8 {[%clk 0:00:05]} 45. Rg8# {[%clk 0:00:20]} 1-0


[Site "https://www.chess.com"]

[Event "Titled Tuesday Blitz July 27 2021"]
[White "Timmermans, Mark"]
[Black "Sanal, Vahap"]
[WhiteFideId "1026399"]
[BlackFideId "6300545"]
[WhiteElo "2460"]
[BlackElo "2495"]
[Result "0-1"]
[Round "03"]
[TimeControl "180+1"]
[Date "2021.07.27"]
[WhiteClock "0:00:24"]
[BlackClock "0:00:23"]

1. b4 {[%clk 0:03:00]}  e5 {[%clk 0:02:58]} 2. Bb2 {[%clk 0:03:00]}  Bxb4 {[%clk 0:02:58]} 3. Bxe5 {[%clk 0:02:57]}  Nf6 {[%clk 0:02:58]} 4. Nc3 {[%clk 0:02:56]}  c6 {[%clk 0:02:54]} 5. a3 {[%clk 0:02:56]}  Be7 {[%clk 0:02:52]} 6. Nf3 {[%clk 0:02:56]}  O-O {[%clk 0:02:48]} 7. e3 {[%clk 0:02:56]}  d5 {[%clk 0:02:46]} 8. Be2 {[%clk 0:02:55]}  Bg4 {[%clk 0:02:43]} 9. O-O {[%clk 0:02:54]}  Nbd7 {[%clk 0:02:43]} 10. Bg3 {[%clk 0:02:54]}  Qa5 {[%clk 0:02:42]} 11. Nd4 {[%clk 0:02:44]}  Bxe2 {[%clk 0:02:21]} 12. Ncxe2 {[%clk 0:02:45]}  g6 {[%clk 0:02:17]} 13. a4 {[%clk 0:02:45]}  a6 {[%clk 0:02:10]} 14. Nb3 {[%clk 0:02:44]}  Qd8 {[%clk 0:02:09]} 15. a5 {[%clk 0:02:45]}  Ne4 {[%clk 0:02:07]} 16. d3 {[%clk 0:02:43]}  Nxg3 {[%clk 0:02:07]} 17. hxg3 {[%clk 0:02:40]}  Bd6 {[%clk 0:02:04]} 18. c4 {[%clk 0:02:38]}  dxc4 {[%clk 0:02:00]} 19. dxc4 {[%clk 0:02:39]}  Qe7 {[%clk 0:01:59]} 20. Qc2 {[%clk 0:02:37]}  Be5 {[%clk 0:01:54]} 21. Rab1 {[%clk 0:02:36]}  Rab8 {[%clk 0:01:53]} 22. Rfd1 {[%clk 0:02:34]}  Bc7 {[%clk 0:01:50]} 23. c5 {[%clk 0:02:18]}  Nf6 {[%clk 0:01:48]} 24. Rd4 {[%clk 0:02:12]}  Be5 {[%clk 0:01:47]} 25. Rb4 {[%clk 0:02:05]}  Nd5 {[%clk 0:01:47]} 26. Re4 {[%clk 0:02:06]}  f5 {[%clk 0:01:47]} 27. Rc4 {[%clk 0:02:06]}  Rfd8 {[%clk 0:01:41]} 28. Nbd4 {[%clk 0:02:00]}  Bg7 {[%clk 0:01:34]} 29. Qb3 {[%clk 0:01:41]}  Be5 {[%clk 0:01:23]} 30. Rc2 {[%clk 0:01:25]}  Kh8 {[%clk 0:01:22]} 31. Qa4 {[%clk 0:01:19]}  Nc7 {[%clk 0:01:18]} 32. Nf3 {[%clk 0:01:14]}  Bf6 {[%clk 0:01:18]} 33. Ned4 {[%clk 0:01:14]}  Nb5 {[%clk 0:01:17]} 34. Qb4 {[%clk 0:01:08]}  Qe4 {[%clk 0:01:09]} 35. Rc4 {[%clk 0:01:03]}  Bxd4 {[%clk 0:00:55]} 36. Nxd4 {[%clk 0:01:01]}  Na3 {[%clk 0:00:50]} 37. Qxa3 {[%clk 0:00:26]}  Qxb1+ {[%clk 0:00:50]} 38. Kh2 {[%clk 0:00:27]}  Qe4 {[%clk 0:00:50]} 39. Qb2 {[%clk 0:00:26]}  Qe5 {[%clk 0:00:48]} 40. Rb4 {[%clk 0:00:26]}  Qg7 {[%clk 0:00:43]} 41. Rb6 {[%clk 0:00:25]}  Rd5 {[%clk 0:00:36]} 42. Rxc6 {[%clk 0:00:25]}  Rbd8 {[%clk 0:00:27]} 43. Rb6 {[%clk 0:00:25]}  R5d7 {[%clk 0:00:27]} 44. c6 {[%clk 0:00:23]}  bxc6 {[%clk 0:00:27]} 45. Rxc6 {[%clk 0:00:24]}  Rb7 {[%clk 0:00:25]} 46. Qc3 {[%clk 0:00:24]}  Qh6+ {[%clk 0:00:23]} 0-1


[Site "https://www.chess.com"]

[Event "Titled Tuesday Blitz July 27 2021"]
[White "Ulko, Jaroslav"]
[Black "Vokhidov, Shamsiddin"]
[WhiteFideId "4116658"]
[BlackFideId "14204223"]
[WhiteElo "2304"]
[BlackElo "2572"]
[Result "0-1"]
[Round "03"]
[TimeControl "180+1"]
[Date "2021.07.27"]
[WhiteClock "0:00:10"]
[BlackClock "0:01:36"]

1. d4 {[%clk 0:02:58]}  Nf6 {[%clk 0:03:00]} 2. c4 {[%clk 0:02:56]}  e6 {[%clk 0:03:00]} 3. Nc3 {[%clk 0:02:56]}  Bb4 {[%clk 0:02:59]} 4. Bg5 {[%clk 0:02:55]}  O-O {[%clk 0:02:57]} 5. e3 {[%clk 0:02:54]}  c5 {[%clk 0:02:57]} 6. Nf3 {[%clk 0:02:54]}  cxd4 {[%clk 0:02:53]} 7. exd4 {[%clk 0:02:53]}  d5 {[%clk 0:02:51]} 8. cxd5 {[%clk 0:02:51]}  exd5 {[%clk 0:02:48]} 9. Be2 {[%clk 0:02:50]}  h6 {[%clk 0:02:47]} 10. Bh4 {[%clk 0:02:50]}  Nc6 {[%clk 0:02:43]} 11. O-O {[%clk 0:02:49]}  g5 {[%clk 0:02:42]} 12. Bg3 {[%clk 0:02:48]}  Bxc3 {[%clk 0:02:42]} 13. bxc3 {[%clk 0:02:47]}  Ne4 {[%clk 0:02:43]} 14. Rc1 {[%clk 0:02:27]}  Re8 {[%clk 0:02:42]} 15. c4 {[%clk 0:02:24]}  Bg4 {[%clk 0:02:28]} 16. cxd5 {[%clk 0:02:02]}  Qxd5 {[%clk 0:02:28]} 17. Bc4 {[%clk 0:02:00]}  Qf5 {[%clk 0:02:28]} 18. d5 {[%clk 0:01:58]}  Ne5 {[%clk 0:02:24]} 19. Bxe5 {[%clk 0:01:12]}  Rxe5 {[%clk 0:02:23]} 20. Nd4 {[%clk 0:00:57]}  Bxd1 {[%clk 0:02:12]} 21. Nxf5 {[%clk 0:00:57]}  Rxf5 {[%clk 0:02:12]} 22. Rcxd1 {[%clk 0:00:55]}  Nd6 {[%clk 0:02:11]} 23. Bb3 {[%clk 0:00:55]}  Rc8 {[%clk 0:02:08]} 24. Rfe1 {[%clk 0:00:55]}  Kf8 {[%clk 0:02:08]} 25. Rd4 {[%clk 0:00:49]}  Rc5 {[%clk 0:02:05]} 26. h4 {[%clk 0:00:49]}  a5 {[%clk 0:02:01]} 27. hxg5 {[%clk 0:00:49]}  hxg5 {[%clk 0:02:02]} 28. g4 {[%clk 0:00:42]}  Rf4 {[%clk 0:01:53]} 29. Rxf4 {[%clk 0:00:32]}  gxf4 {[%clk 0:01:54]} 30. Kg2 {[%clk 0:00:28]}  b5 {[%clk 0:01:51]} 31. Re5 {[%clk 0:00:28]}  a4 {[%clk 0:01:48]} 32. Bd1 {[%clk 0:00:29]}  Rc1 {[%clk 0:01:43]} 33. Bf3 {[%clk 0:00:26]}  Rc2 {[%clk 0:01:43]} 34. Re2 {[%clk 0:00:12]}  Rc3 {[%clk 0:01:40]} 35. g5 {[%clk 0:00:11]}  Nf5 {[%clk 0:01:37]} 36. Rd2 {[%clk 0:00:10]}  Nh4+ {[%clk 0:01:36]} 0-1


[Site "https://www.chess.com"]

[Event "Titled Tuesday Blitz July 27 2021"]
[White "Zhigalko, Sergei"]
[Black "Willow, Jonah B"]
[WhiteFideId "13502956"]
[BlackFideId "438804"]
[WhiteElo "2662"]
[BlackElo "2261"]
[Result "1-0"]
[Round "03"]
[TimeControl "180+1"]
[Date "2021.07.27"]
[WhiteClock "0:00:04"]
[BlackClock "0:00:02"]

1. e4 {[%clk 0:03:00]}  c5 {[%clk 0:03:00]} 2. Nf3 {[%clk 0:03:01]}  Nc6 {[%clk 0:03:00]} 3. c3 {[%clk 0:02:59]}  Nf6 {[%clk 0:03:00]} 4. e5 {[%clk 0:02:59]}  Nd5 {[%clk 0:03:00]} 5. Bc4 {[%clk 0:02:58]}  Nb6 {[%clk 0:03:00]} 6. Bb3 {[%clk 0:02:58]}  g6 {[%clk 0:03:01]} 7. d4 {[%clk 0:02:58]}  cxd4 {[%clk 0:03:02]} 8. Ng5 {[%clk 0:02:57]}  e6 {[%clk 0:02:38]} 9. Ne4 {[%clk 0:02:43]}  Nxe5 {[%clk 0:02:11]} 10. Qxd4 {[%clk 0:02:42]}  Bg7 {[%clk 0:01:40]} 11. Bg5 {[%clk 0:02:09]}  f6 {[%clk 0:01:39]} 12. Nd6+ {[%clk 0:01:36]}  Kf8 {[%clk 0:01:34]} 13. Bf4 {[%clk 0:01:21]}  Qe7 {[%clk 0:01:07]} 14. O-O {[%clk 0:01:17]}  Nd5 {[%clk 0:00:41]} 15. Nxc8 {[%clk 0:00:58]}  Nxf4 {[%clk 0:00:42]} 16. Qxf4 {[%clk 0:00:28]}  Rxc8 {[%clk 0:00:41]} 17. Nd2 {[%clk 0:00:27]}  f5 {[%clk 0:00:33]} 18. Rad1 {[%clk 0:00:24]}  Bf6 {[%clk 0:00:29]} 19. Qh6+ {[%clk 0:00:21]}  Qg7 {[%clk 0:00:27]} 20. Qe3 {[%clk 0:00:21]}  b6 {[%clk 0:00:22]} 21. f4 {[%clk 0:00:19]}  Ng4 {[%clk 0:00:22]} 22. Qg3 {[%clk 0:00:19]}  Be7 {[%clk 0:00:20]} 23. Nf3 {[%clk 0:00:13]}  Ne3 {[%clk 0:00:18]} 24. Ne5 {[%clk 0:00:11]}  Nxd1 {[%clk 0:00:14]} 25. Nxd7+ {[%clk 0:00:10]}  Ke8 {[%clk 0:00:14]} 26. Rxd1 {[%clk 0:00:09]}  Bc5+ {[%clk 0:00:13]} 27. Kf1 {[%clk 0:00:08]}  Qe7 {[%clk 0:00:10]} 28. Ne5 {[%clk 0:00:02]}  Rd8 {[%clk 0:00:10]} 29. Ba4+ {[%clk 0:00:02]}  Kf8 {[%clk 0:00:11]} 30. Re1 {[%clk 0:00:02]}  Kg7 {[%clk 0:00:11]} 31. Nc6 {[%clk 0:00:03]}  Qd6 {[%clk 0:00:09]} 32. Nxd8 {[%clk 0:00:03]}  Rxd8 {[%clk 0:00:10]} 33. b4 {[%clk 0:00:04]}  Bxb4 {[%clk 0:00:04]} 34. cxb4 {[%clk 0:00:04]}  Qxb4 {[%clk 0:00:05]} 35. Bb3 {[%clk 0:00:05]}  Rd2 {[%clk 0:00:03]} 36. Qe3 {[%clk 0:00:04]}  Qd6 {[%clk 0:00:02]} 37. Qe5+ {[%clk 0:00:04]}  Qxe5 {[%clk 0:00:02]} 38. Rxe5 {[%clk 0:00:05]}  Rd4 {[%clk 0:00:02]} 39. g3 {[%clk 0:00:05]}  Rd2 {[%clk 0:00:02]} 40. Re2 {[%clk 0:00:04]} 1-0


[Site "https://www.chess.com"]

[Event "Titled Tuesday Blitz July 27 2021"]
[White "Allahverdiyeva, Ayan"]
[Black "Maevsky, Nikolay"]
[WhiteFideId "13412590"]
[BlackFideId "4198220"]
[WhiteElo "1910"]
[BlackElo "2213"]
[Result "0-1"]
[Round "04"]
[TimeControl "180+1"]
[Date "2021.07.27"]
[WhiteClock "0:00:01"]
[BlackClock "0:00:16"]

1. e4 {[%clk 0:02:39]}  g6 {[%clk 0:02:59]} 2. d4 {[%clk 0:02:38]}  Bg7 {[%clk 0:03:00]} 3. Nc3 {[%clk 0:02:37]}  d6 {[%clk 0:03:00]} 4. f4 {[%clk 0:02:37]}  a6 {[%clk 0:03:00]} 5. Nf3 {[%clk 0:02:37]}  b5 {[%clk 0:03:00]} 6. Bd3 {[%clk 0:02:35]}  Nd7 {[%clk 0:03:00]} 7. e5 {[%clk 0:02:31]}  Bb7 {[%clk 0:03:00]} 8. Qe2 {[%clk 0:02:30]}  Nh6 {[%clk 0:02:59]} 9. Be3 {[%clk 0:02:25]}  Nb6 {[%clk 0:02:56]} 10. Ng5 {[%clk 0:02:02]}  e6 {[%clk 0:02:44]} 11. O-O-O {[%clk 0:01:52]}  Qd7 {[%clk 0:02:23]} 12. Nce4 {[%clk 0:01:19]}  Nf5 {[%clk 0:02:14]} 13. Bf2 {[%clk 0:01:13]}  h6 {[%clk 0:02:11]} 14. Nf3 {[%clk 0:01:10]}  Nd5 {[%clk 0:02:08]} 15. g4 {[%clk 0:00:50]}  Nxf4 {[%clk 0:02:08]} 16. Qd2 {[%clk 0:00:46]}  Nxd3+ {[%clk 0:01:55]} 17. Qxd3 {[%clk 0:00:46]}  Ne7 {[%clk 0:01:45]} 18. exd6 {[%clk 0:00:46]}  cxd6 {[%clk 0:01:45]} 19. Bg3 {[%clk 0:00:46]}  Bxe4 {[%clk 0:01:34]} 20. Qxe4 {[%clk 0:00:45]}  Nd5 {[%clk 0:01:34]} 21. h4 {[%clk 0:00:25]}  Rc8 {[%clk 0:01:32]} 22. Kb1 {[%clk 0:00:20]}  b4 {[%clk 0:01:22]} 23. h5 {[%clk 0:00:20]}  g5 {[%clk 0:01:21]} 24. Rhe1 {[%clk 0:00:18]}  O-O {[%clk 0:01:17]} 25. Nxg5 {[%clk 0:00:10]}  hxg5 {[%clk 0:01:16]} 26. h6 {[%clk 0:00:11]}  Nf6 {[%clk 0:00:39]} 27. Qe3 {[%clk 0:00:03]}  Bxh6 {[%clk 0:00:20]} 28. Rh1 {[%clk 0:00:03]}  Kg7 {[%clk 0:00:21]} 29. Rxh6 {[%clk 0:00:01]}  Kxh6 {[%clk 0:00:21]} 30. Rh1+ {[%clk 0:00:01]}  Kg6 {[%clk 0:00:22]} 31. Qd3+ {[%clk 0:00:02]}  Kg7 {[%clk 0:00:22]} 32. Qe3 {[%clk 0:00:02]}  Nh7 {[%clk 0:00:18]} 33. Rxh7+ {[%clk 0:00:01]}  Kxh7 {[%clk 0:00:18]} 34. Qxg5 {[%clk 0:00:01]}  f5 {[%clk 0:00:16]} 35. Qh5+ {[%clk 0:00:01]}  Kg8 {[%clk 0:00:16]} 0-1


[Site "https://www.chess.com"]

[Event "Titled Tuesday Blitz July 27 2021"]
[White "Altman, Joshua"]
[Black "Do Valle Cardoso, Lucas"]
[WhiteFideId "426210"]
[BlackFideId "2163144"]
[WhiteElo "1945"]
[BlackElo "2387"]
[Result "1-0"]
[Round "04"]
[TimeControl "180+1"]
[Date "2021.07.27"]
[WhiteClock "0:02:16"]
[BlackClock "0:01:41"]

1. d4 {[%clk 0:03:00]}  d5 {[%clk 0:03:00]} 2. c4 {[%clk 0:03:01]}  dxc4 {[%clk 0:03:01]} 3. e3 {[%clk 0:03:01]}  e5 {[%clk 0:03:00]} 4. Bxc4 {[%clk 0:03:01]}  exd4 {[%clk 0:03:00]} 5. exd4 {[%clk 0:03:02]}  Nf6 {[%clk 0:03:01]} 6. Nf3 {[%clk 0:02:59]}  Bd6 {[%clk 0:03:01]} 7. Qe2+ {[%clk 0:02:59]}  Qe7 {[%clk 0:03:00]} 8. Qxe7+ {[%clk 0:02:59]}  Kxe7 {[%clk 0:03:01]} 9. O-O {[%clk 0:02:59]}  Re8 {[%clk 0:03:01]} 10. Bg5 {[%clk 0:02:57]}  Be6 {[%clk 0:02:54]} 11. Re1 {[%clk 0:02:52]}  Kd7 {[%clk 0:02:46]} 12. Ne5+ {[%clk 0:02:42]}  Bxe5 {[%clk 0:02:44]} 13. Bxe6+ {[%clk 0:02:42]}  Rxe6 {[%clk 0:02:43]} 14. dxe5 {[%clk 0:02:42]}  Ng4 {[%clk 0:02:35]} 15. Nc3 {[%clk 0:02:34]}  Nc6 {[%clk 0:02:22]} 16. Rad1+ {[%clk 0:02:32]}  Kc8 {[%clk 0:02:22]} 17. f4 {[%clk 0:02:24]}  h6 {[%clk 0:02:11]} 18. Bh4 {[%clk 0:02:24]}  g5 {[%clk 0:01:48]} 19. fxg5 {[%clk 0:02:21]}  Ngxe5 {[%clk 0:01:41]} 20. gxh6 {[%clk 0:02:19]}  Rxh6 {[%clk 0:01:41]} 21. Rxe5 {[%clk 0:02:16]} 1-0


[Site "https://www.chess.com"]